Workbook

Sheet Data Entry
A1: Pellet 1 | G1: Pellet 2 | M1: Pellet 3 | S1: Pellet 4 | Y1: Pellet 5 | AE1: Pellet 6 | AK1: Pellet 7 | AQ1: Pellet 8 | AW1: Pellet 9 | BC1: Pellet 10
A2: Depth: | B2: 1175.00 | G2: Depth: | H2: 1186.70 | M2: Depth: | N2: 1196.80 | S2: Depth: | T2: 1214.60 | Y2: Depth: | Z2: 1232.40 | AE2: Depth: | AF2: 1239.85 | AK2: Depth: | AL2: 1248.60 | AQ2: Depth: | AR2: 1270.00 | AW2: Depth: | AX2: 1279.10 | BC2: Depth: | BD2: 1284.45
A3: Well: | B3: Slater River H-64 | G3: Well: | H3: Slater River H-64 | M3: Well: | N3: Slater River H-64 | S3: Well: | T3: Slater River H-64 | Y3: Well: | Z3: Slater River H-64 | AE3: Well: | AF3: Slater River H-64 | AK3: Well: | AL3: Slater River H-64 | AQ3: Well: | AR3: Slater River H-64 | AW3: Well: | AX3: Slater River H-64 | BC3: Well: | BD3: Slater River H-64
A4: Pellet # | B4: 363-12 | G4: Pellet # | H4: 364-12 | M4: Pellet # | N4: 365-12 | S4: Pellet # | T4: 366-12 | Y4: Pellet # | Z4: 367-12 | AE4: Pellet # | AF4: 368-12 | AK4: Pellet # | AL4: 369-12 | AQ4: Pellet # | AR4: 370-12 | AW4: Pellet # | AX4: 371-12 | BC4: Pellet # | BD4: 372-12
B5: Count: | C5: =COUNT(C7:C56) -> 18 | D5: =COUNT(D7:D56) -> 3 | E5: =COUNT(E7:E56) -> 0 | F5: =COUNT(F7:F56) -> 0 | H5: Count: | I5: =COUNT(I7:I56) -> 7 | J5: =COUNT(J7:J56) -> 2 | K5: =COUNT(K7:K56) -> 0 | L5: =COUNT(L7:L56) -> 0 | N5: Count: | O5: =COUNT(O7:O56) -> 3 | P5: =COUNT(P7:P56) -> 2 | Q5: =COUNT(Q7:Q56) -> 0 | R5: =COUNT(R7:R56) -> 0 | T5: Count: | U5: =COUNT(U7:U56) -> 1 | V5: =COUNT(V7:V56) -> 1 | W5: =COUNT(W7:W56) -> 0 | X5: =COUNT(X7:X56) -> 0 | Z5: Count: | AA5: =COUNT(AA7:AA56) -> 8 | AB5: =COUNT(AB7:AB56) -> 9 | AC5: =COUNT(AC7:AC56) -> 0 | AD5: =COUNT(AD7:AD56) -> 0 | AF5: Count: | AG5: =COUNT(AG7:AG56) -> 44 | AH5: =COUNT(AH7:AH56) -> 5 | AI5: =COUNT(AI7:AI56) -> 7 | AJ5: =COUNT(AJ7:AJ56) -> 0 | AL5: Count: | AM5: =COUNT(AM7:AM56) -> 3 | AN5: =COUNT(AN7:AN56) -> 0 | AO5: =COUNT(AO7:AO56) -> 0 | AP5: =COUNT(AP7:AP56) -> 0 | AR5: Count: | AS5: =COUNT(AS7:AS56) -> 3 | AT5: =COUNT(AT7:AT56) -> 9 | AU5: =COUNT(AU7:AU56) -> 3 | AV5: =COUNT(AV7:AV56) -> 0 | AX5: Count: | AY5: =COUNT(AY7:AY56) -> 6 | AZ5: =COUNT(AZ7:AZ56) -> 0 | BA5: =COUNT(BA7:BA56) -> 0 | BB5: =COUNT(BB7:BB56) -> 0 | BD5: Count: | BE5: =COUNT(BE7:BE56) -> 15 | BF5: =COUNT(BF7:BF56) -> 0 | BG5: =COUNT(BG7:BG56) -> 0 | BH5: =COUNT(BH7:BH56) -> 0
B6: OM Type: | C6: Kgn | D6: Pbit | H6: OM Type: | I6: Kgn | J6: Pbit | N6: OM Type: | O6: Kgn | P6: Grnl Kgn | T6: OM Type: | U6: Kgn | V6: Pbit | Z6: OM Type: | AA6: Kgn | AB6: Grnl Kgn | AF6: OM Type: | AG6: Pbit | AH6: Kgn | AI6: Grnl Kgn | AL6: OM Type: | AM6: Kgn | AR6: OM Type: | AS6: Kgn | AT6: Gr | AU6: Pbit | AX6: OM Type: | AY6: Kgn | BD6: OM Type: | BE6: Kgn
C7: 0.904 | D7: 1.085 | I7: 0.9267 | J7: 0.8963 | O7: 0.9205 | P7: 0.6191 | U7: 0.805 | V7: 0.5492 | AA7: 0.9798 | AB7: 0.537 | AG7: 0.9226 | AH7: 0.8412 | AI7: 0.6515 | AM7: 0.8155 | AS7: 0.938 | AT7: 0.7709 | AU7: 0.9367 | AY7: 1.247 | BE7: 0.8682
C8: 0.9196 | D8: 0.9385 | I8: 0.9984 | J8: 0.951 | O8: 0.9053 | P8: 0.6298 | AA8: 1.006 | AB8: 0.555 | AG8: 0.9739 | AH8: 0.9505 | AI8: 0.6339 | AM8: 0.7668 | AS8: 1.092 | AT8: 0.7616 | AU8: 0.9267 | AY8: 1.165 | BE8: 1.039
C9: 0.9611 | D9: 0.9962 | I9: 0.8783 | O9: 0.8686 | AA9: 0.9195 | AB9: 0.5367 | AG9: 0.9758 | AH9: 0.8247 | AI9: 0.6161 | AM9: 0.8389 | AS9: 0.9162 | AT9: 0.707 | AU9: 1.001 | AY9: 1.065 | BE9: 1.014
C10: 0.9656 | I10: 0.8319 | AA10: 0.9533 | AB10: 0.562 | AG10: 0.934 | AH10: 0.9608 | AI10: 0.5993 | AT10: 0.6268 | AY10: 1.068 | BE10: 0.9899
C11: 0.9337 | I11: 0.8384 | AA11: 0.9466 | AB11: 0.5944 | AG11: 0.8499 | AH11: 0.8713 | AI11: 0.6166 | AT11: 0.6792 | AY11: 1.177 | BE11: 0.9982
C12: 0.8161 | I12: 0.8948 | AA12: 0.866 | AB12: 0.6009 | AG12: 0.8993 | AI12: 0.6558 | AT12: 0.6574 | AY12: 1.197 | BE12: 0.9705
C13: 1.18 | I13: 0.8531 | AA13: 0.9395 | AB13: 0.5707 | AG13: 0.9941 | AI13: 0.5928 | AT13: 0.5857 | BE13: 1.036
C14: 0.9143 | AA14: 0.8327 | AB14: 0.5876 | AG14: 0.968 | AT14: 0.6772 | BE14: 1.147
C15: 1.068 | AB15: 0.5854 | AG15: 0.8578 | AT15: 0.759 | BE15: 1.006
C16: 1.039 | AG16: 0.9621 | BE16: 0.923
C17: 1.092 | AG17: 0.9942 | BE17: 1.086
C18: 1.078 | AG18: 0.9558 | BE18: 1.102
C19: 1.112 | AG19: 0.9849 | BE19: 1.012
C20: 1.196 | AG20: 0.9693 | BE20: 0.9032
C21: 1.146 | AG21: 0.9615 | BE21: 0.926
C22: 1.161 | AG22: 0.9682
C23: 0.9543 | AG23: 0.8787
C24: 1.178 | AG24: 0.9584
AG25: 0.8674
AG26: 0.9387
AG27: 0.8867
AG28: 0.9038
AG29: 0.8782
AG30: 1.032
AG31: 0.9832
AG32: 0.9887
AG33: 0.952
AG34: 0.9844
AG35: 0.9071
AG36: 0.993
AG37: 0.9844
AG38: 1.028
AG39: 0.9093
AG40: 1.046
AG41: 0.9482
AG42: 0.9379
AG43: 0.8911
AG44: 0.8823
AG45: 0.8728
AG46: 0.8474
AG47: 0.8422
AG48: 1.024
AG49: 1.013
AG50: 1.004
A58: Statistics Individual: | B58: Mean: | C58: =AVERAGE(C7:C56) -> 1.03 | D58: =AVERAGE(D7:D56) -> 1.01 | E58: =AVERAGE(E7:E56) ->  | F58: =AVERAGE(F7:F56) ->  | G58: Statistics Individual: | H58: Mean: | I58: =AVERAGE(I7:I56) -> 0.89 | J58: =AVERAGE(J7:J56) -> 0.92 | K58: =AVERAGE(K7:K56) ->  | L58: =AVERAGE(L7:L56) ->  | M58: Statistics Individual: | N58: Mean: | O58: =AVERAGE(O7:O56) -> 0.90 | P58: =AVERAGE(P7:P56) -> 0.62 | Q58: =AVERAGE(Q7:Q56) ->  | R58: =AVERAGE(R7:R56) ->  | S58: Statistics Individual: | T58: Mean: | U58: =AVERAGE(U7:U56) -> 0.81 | V58: =AVERAGE(V7:V56) -> 0.55 | W58: =AVERAGE(W7:W56) ->  | X58: =AVERAGE(X7:X56) ->  | Y58: Statistics Individual: | Z58: Mean: | AA58: =AVERAGE(AA7:AA56) -> 0.93 | AB58: =AVERAGE(AB7:AB56) -> 0.57 | AC58: =AVERAGE(AC7:AC56) ->  | AD58: =AVERAGE(AD7:AD56) ->  | AE58: Statistics Individual: | AF58: Mean: | AG58: =AVERAGE(AG7:AG56) -> 0.94 | AH58: =AVERAGE(AH7:AH56) -> 0.89 | AI58: =AVERAGE(AI7:AI56) -> 0.62 | AJ58: =AVERAGE(AJ7:AJ56) ->  | AK58: Statistics Individual: | AL58: Mean: | AM58: =AVERAGE(AM7:AM56) -> 0.81 | AN58: =AVERAGE(AN7:AN56) ->  | AO58: =AVERAGE(AO7:AO56) ->  | AP58: =AVERAGE(AP7:AP56) ->  | AQ58: Statistics Individual: | AR58: Mean: | AS58: =AVERAGE(AS7:AS56) -> 0.98 | AT58: =AVERAGE(AT7:AT56) -> 0.69 | AU58: =AVERAGE(AU7:AU56) -> 0.95 | AV58: =AVERAGE(AV7:AV56) ->  | AW58: Statistics Individual: | AX58: Mean: | AY58: =AVERAGE(AY7:AY56) -> 1.15 | AZ58: =AVERAGE(AZ7:AZ56) ->  | BA58: =AVERAGE(BA7:BA56) ->  | BB58: =AVERAGE(BB7:BB56) ->  | BC58: Statistics Individual: | BD58: Mean: | BE58: =AVERAGE(BE7:BE56) -> 1.00 | BF58: =AVERAGE(BF7:BF56) ->  | BG58: =AVERAGE(BG7:BG56) ->  | BH58: =AVERAGE(BH7:BH56) -> 
B59: Max: | C59: =MAX(C7:C56) -> 1.20 | D59: =MAX(D7:D56) -> 1.09 | E59: =MAX(E7:E56) -> 0.00 | F59: =MAX(F7:F56) -> 0.00 | H59: Max: | I59: =MAX(I7:I56) -> 1.00 | J59: =MAX(J7:J56) -> 0.95 | K59: =MAX(K7:K56) -> 0.00 | L59: =MAX(L7:L56) -> 0.00 | N59: Max: | O59: =MAX(O7:O56) -> 0.92 | P59: =MAX(P7:P56) -> 0.63 | Q59: =MAX(Q7:Q56) -> 0.00 | R59: =MAX(R7:R56) -> 0.00 | T59: Max: | U59: =MAX(U7:U56) -> 0.81 | V59: =MAX(V7:V56) -> 0.55 | W59: =MAX(W7:W56) -> 0.00 | X59: =MAX(X7:X56) -> 0.00 | Z59: Max: | AA59: =MAX(AA7:AA56) -> 1.01 | AB59: =MAX(AB7:AB56) -> 0.60 | AC59: =MAX(AC7:AC56) -> 0.00 | AD59: =MAX(AD7:AD56) -> 0.00 | AF59: Max: | AG59: =MAX(AG7:AG56) -> 1.05 | AH59: =MAX(AH7:AH56) -> 0.96 | AI59: =MAX(AI7:AI56) -> 0.66 | AJ59: =MAX(AJ7:AJ56) -> 0.00 | AL59: Max: | AM59: =MAX(AM7:AM56) -> 0.84 | AN59: =MAX(AN7:AN56) -> 0.00 | AO59: =MAX(AO7:AO56) -> 0.00 | AP59: =MAX(AP7:AP56) -> 0.00 | AR59: Max: | AS59: =MAX(AS7:AS56) -> 1.09 | AT59: =MAX(AT7:AT56) -> 0.77 | AU59: =MAX(AU7:AU56) -> 1.00 | AV59: =MAX(AV7:AV56) -> 0.00 | AX59: Max: | AY59: =MAX(AY7:AY56) -> 1.25 | AZ59: =MAX(AZ7:AZ56) -> 0.00 | BA59: =MAX(BA7:BA56) -> 0.00 | BB59: =MAX(BB7:BB56) -> 0.00 | BD59: Max: | BE59: =MAX(BE7:BE56) -> 1.15 | BF59: =MAX(BF7:BF56) -> 0.00 | BG59: =MAX(BG7:BG56) -> 0.00 | BH59: =MAX(BH7:BH56) -> 0.00
B60: Min: | C60: =MIN(C7:C56) -> 0.82 | D60: =MIN(D7:D56) -> 0.94 | E60: =MIN(E7:E56) -> 0.00 | F60: =MIN(F7:F56) -> 0.00 | H60: Min: | I60: =MIN(I7:I56) -> 0.83 | J60: =MIN(J7:J56) -> 0.90 | K60: =MIN(K7:K56) -> 0.00 | L60: =MIN(L7:L56) -> 0.00 | N60: Min: | O60: =MIN(O7:O56) -> 0.87 | P60: =MIN(P7:P56) -> 0.62 | Q60: =MIN(Q7:Q56) -> 0.00 | R60: =MIN(R7:R56) -> 0.00 | T60: Min: | U60: =MIN(U7:U56) -> 0.81 | V60: =MIN(V7:V56) -> 0.55 | W60: =MIN(W7:W56) -> 0.00 | X60: =MIN(X7:X56) -> 0.00 | Z60: Min: | AA60: =MIN(AA7:AA56) -> 0.83 | AB60: =MIN(AB7:AB56) -> 0.54 | AC60: =MIN(AC7:AC56) -> 0.00 | AD60: =MIN(AD7:AD56) -> 0.00 | AF60: Min: | AG60: =MIN(AG7:AG56) -> 0.84 | AH60: =MIN(AH7:AH56) -> 0.82 | AI60: =MIN(AI7:AI56) -> 0.59 | AJ60: =MIN(AJ7:AJ56) -> 0.00 | AL60: Min: | AM60: =MIN(AM7:AM56) -> 0.77 | AN60: =MIN(AN7:AN56) -> 0.00 | AO60: =MIN(AO7:AO56) -> 0.00 | AP60: =MIN(AP7:AP56) -> 0.00 | AR60: Min: | AS60: =MIN(AS7:AS56) -> 0.92 | AT60: =MIN(AT7:AT56) -> 0.59 | AU60: =MIN(AU7:AU56) -> 0.93 | AV60: =MIN(AV7:AV56) -> 0.00 | AX60: Min: | AY60: =MIN(AY7:AY56) -> 1.07 | AZ60: =MIN(AZ7:AZ56) -> 0.00 | BA60: =MIN(BA7:BA56) -> 0.00 | BB60: =MIN(BB7:BB56) -> 0.00 | BD60: Min: | BE60: =MIN(BE7:BE56) -> 0.87 | BF60: =MIN(BF7:BF56) -> 0.00 | BG60: =MIN(BG7:BG56) -> 0.00 | BH60: =MIN(BH7:BH56) -> 0.00
B61: Stdev: | C61: =STDEV(C7:C56) -> 0.12 | D61: =STDEV(D7:D56) -> 0.07 | E61: =STDEV(E7:E56) ->  | F61: =STDEV(F7:F56) ->  | H61: Stdev: | I61: =STDEV(I7:I56) -> 0.06 | J61: =STDEV(J7:J56) -> 0.04 | K61: =STDEV(K7:K56) ->  | L61: =STDEV(L7:L56) ->  | N61: Stdev: | O61: =STDEV(O7:O56) -> 0.03 | P61: =STDEV(P7:P56) -> 0.01 | Q61: =STDEV(Q7:Q56) ->  | R61: =STDEV(R7:R56) ->  | T61: Stdev: | U61: =STDEV(U7:U56) ->  | V61: =STDEV(V7:V56) ->  | W61: =STDEV(W7:W56) ->  | X61: =STDEV(X7:X56) ->  | Z61: Stdev: | AA61: =STDEV(AA7:AA56) -> 0.06 | AB61: =STDEV(AB7:AB56) -> 0.02 | AC61: =STDEV(AC7:AC56) ->  | AD61: =STDEV(AD7:AD56) ->  | AF61: Stdev: | AG61: =STDEV(AG7:AG56) -> 0.06 | AH61: =STDEV(AH7:AH56) -> 0.06 | AI61: =STDEV(AI7:AI56) -> 0.02 | AJ61: =STDEV(AJ7:AJ56) ->  | AL61: Stdev: | AM61: =STDEV(AM7:AM56) -> 0.04 | AN61: =STDEV(AN7:AN56) ->  | AO61: =STDEV(AO7:AO56) ->  | AP61: =STDEV(AP7:AP56) ->  | AR61: Stdev: | AS61: =STDEV(AS7:AS56) -> 0.10 | AT61: =STDEV(AT7:AT56) -> 0.06 | AU61: =STDEV(AU7:AU56) -> 0.04 | AV61: =STDEV(AV7:AV56) ->  | AX61: Stdev: | AY61: =STDEV(AY7:AY56) -> 0.07 | AZ61: =STDEV(AZ7:AZ56) ->  | BA61: =STDEV(BA7:BA56) ->  | BB61: =STDEV(BB7:BB56) ->  | BD61: Stdev: | BE61: =STDEV(BE7:BE56) -> 0.08 | BF61: =STDEV(BF7:BF56) ->  | BG61: =STDEV(BG7:BG56) ->  | BH61: =STDEV(BH7:BH56) -> 
A79: Sorted Combined Measurements
A81: Depth: | B81: =B2 -> 1175 | C81: =H2 -> 1186.7 | D81: =N2 -> 1196.8 | E81: =T2 -> 1214.6 | F81: =Z2 -> 1232.4 | G81: =AF2 -> 1239.85 | H81: =AL2 -> 1248.6 | I81: =AR2 -> 1270 | J81: =AX2 -> 1279.1 | K81: =BD2 -> 1284.45
A82: 1 | B82: 0.8161 | C82: 0.8319 | D82: 0.8686 | E82: 0.805 | F82: 0.8327 | G82: 0.8422 | H82: 0.7668 | I82: 0.9162 | J82: 1.065 | K82: 0.8682
A83: 2 | B83: 0.904 | C83: 0.8384 | D83: 0.9053 | F83: 0.866 | G83: 0.8474 | H83: 0.8155 | I83: 0.938 | J83: 1.068 | K83: 0.9032
A84: 3 | B84: 0.9143 | C84: 0.8531 | D84: 0.9205 | F84: 0.9195 | G84: 0.8499 | H84: 0.8389 | I84: 1.092 | J84: 1.165 | K84: 0.923
A85: 4 | B85: 0.9196 | C85: 0.8783 | F85: 0.9395 | G85: 0.8578 | J85: 1.177 | K85: 0.926
A86: 5 | B86: 0.9337 | C86: 0.8948 | F86: 0.9466 | G86: 0.8674 | J86: 1.197 | K86: 0.9705
A87: 6 | B87: 0.9543 | C87: 0.9267 | F87: 0.9533 | G87: 0.8728 | J87: 1.247 | K87: 0.9899
A88: 7 | B88: 0.9611 | C88: 0.9984 | F88: 0.9798 | G88: 0.8782 | K88: 0.9982
A89: 8 | B89: 0.9656 | F89: 1.006 | G89: 0.8787 | K89: 1.006
A90: 9 | B90: 1.039 | G90: 0.8823 | K90: 1.012
A91: 10 | B91: 1.068 | G91: 0.8867 | K91: 1.014
A92: 11 | B92: 1.078 | G92: 0.8911 | K92: 1.036
A93: 12 | B93: 1.092 | G93: 0.8993 | K93: 1.039
A94: 13 | B94: 1.112 | G94: 0.9038 | K94: 1.086
A95: 14 | B95: 1.146 | G95: 0.9071 | K95: 1.102
A96: 15 | B96: 1.161 | G96: 0.9093 | K96: 1.147
A97: 16 | B97: 1.178 | G97: 0.9226
A98: 17 | B98: 1.18 | G98: 0.934
A99: 18 | B99: 1.196 | G99: 0.9379
A100: 19 | G100: 0.9387
A101: 20 | G101: 0.9482
A102: 21 | G102: 0.952
A103: 22 | G103: 0.9558
A104: 23 | G104: 0.9584
A105: 24 | G105: 0.9615
A106: 25 | G106: 0.9621
A107: 26 | G107: 0.968
A108: 27 | G108: 0.9682
A109: 28 | G109: 0.9693
A110: 29 | G110: 0.9739
A111: 30 | G111: 0.9758
A112: 31 | G112: 0.9832
A113: 32 | G113: 0.9844
A114: 33 | G114: 0.9844
A115: 34 | G115: 0.9849
A116: 35 | G116: 0.9887
A117: 36 | G117: 0.993
A118: 37 | G118: 0.9941
A119: 38 | G119: 0.9942
A120: 39 | G120: 1.004
A121: 40 | G121: 1.013
A122: 41 | G122: 1.024
A123: 42 | G123: 1.028
A124: 43 | G124: 1.032
A125: 44 | G125: 1.046
A126: 45
A127: 46
A128: 47
A129: 48
A130: 49
A131: 50

Sheet Database
B1: Company: | C1: Husky Energy
B2: Analyst: | C2: Thomas Gentzis
B3: Vitrinite Reflectance Measurements, Histogram and Images
G6: 1 | H6: 2 | I6: 3 | J6: 4 | K6: 5 | L6: 6 | M6: 7 | N6: 8 | O6: 9 | P6: 10 | Q6: 11 | R6: 12 | S6: 13 | T6: 14 | U6: 15 | V6: 16 | W6: 17 | X6: 18 | Y6: 19 | Z6: 20 | AA6: 21 | AB6: 22 | AC6: 23 | AD6: 24 | AE6: 25 | AF6: 26 | AG6: 27 | AH6: 28 | AI6: 29 | AJ6: 30 | AK6: 31 | AL6: 32 | AM6: 33 | AN6: 34 | AO6: 35 | AP6: 36 | AQ6: 37 | AR6: 38 | AS6: 39 | AT6: 40 | AU6: 41 | AV6: 42 | AW6: 43 | AX6: 44 | AY6: 45 | AZ6: 46 | BA6: 47 | BB6: 48 | BC6: 49 | BD6: 50
A7: Plate # | B7: Location | C7: Formation | D7: Depth (m) | E7: Well | F7: Count | G7: VRo Measurements
A8: Plate 1 A-D | B8: Canada | C8: Canol | D8: 1175.00 | E8: Slater River H-64 | F8: =COUNT(G8:HB8) -> 50 | G8: =TRANSPOSE('Data Entry'!B82:B131) -> 0.8161 | H8: 0.904 | I8: 0.9143 | J8: 0.9196 | K8: 0.9337 | L8: 0.9543 | M8: 0.9611 | N8: 0.9656 | O8: 1.039 | P8: 1.068 | Q8: 1.078 | R8: 1.092 | S8: 1.112 | T8: 1.146 | U8: 1.161 | V8: 1.178 | W8: 1.18 | X8: 1.196 | Y8: 0 | Z8: 0 | AA8: 0 | AB8: 0 | AC8: 0 | AD8: 0 | AE8: 0 | AF8: 0 | AG8: 0 | AH8: 0 | AI8: 0 | AJ8: 0 | AK8: 0 | AL8: 0 | AM8: 0 | AN8: 0 | AO8: 0 | AP8: 0 | AQ8: 0 | AR8: 0 | AS8: 0 | AT8: 0 | AU8: 0 | AV8: 0 | AW8: 0 | AX8: 0 | AY8: 0 | AZ8: 0 | BA8: 0 | BB8: 0 | BC8: 0 | BD8: 0
A9: Plate 2 A-D | B9: Canada | C9: Canol | D9: 1186.70 | E9: Slater River H-64 | F9: =COUNT(G9:BH9) -> 50 | G9: =TRANSPOSE('Data Entry'!C82:C131) -> 0.8319 | H9: 0.8384 | I9: 0.8531 | J9: 0.8783 | K9: 0.8948 | L9: 0.9267 | M9: 0.9984 | N9: 0 | O9: 0 | P9: 0 | Q9: 0 | R9: 0 | S9: 0 | T9: 0 | U9: 0 | V9: 0 | W9: 0 | X9: 0 | Y9: 0 | Z9: 0 | AA9: 0 | AB9: 0 | AC9: 0 | AD9: 0 | AE9: 0 | AF9: 0 | AG9: 0 | AH9: 0 | AI9: 0 | AJ9: 0 | AK9: 0 | AL9: 0 | AM9: 0 | AN9: 0 | AO9: 0 | AP9: 0 | AQ9: 0 | AR9: 0 | AS9: 0 | AT9: 0 | AU9: 0 | AV9: 0 | AW9: 0 | AX9: 0 | AY9: 0 | AZ9: 0 | BA9: 0 | BB9: 0 | BC9: 0 | BD9: 0
A10: Plate 3 A-D | B10: Canada | C10: Canol | D10: 1196.80 | E10: Slater River H-64 | F10: =COUNT(G10:BH10) -> 50 | G10: =TRANSPOSE('Data Entry'!D82:D131) -> 0.8686 | H10: 0.9053 | I10: 0.9205 | J10: 0 | K10: 0 | L10: 0 | M10: 0 | N10: 0 | O10: 0 | P10: 0 | Q10: 0 | R10: 0 | S10: 0 | T10: 0 | U10: 0 | V10: 0 | W10: 0 | X10: 0 | Y10: 0 | Z10: 0 | AA10: 0 | AB10: 0 | AC10: 0 | AD10: 0 | AE10: 0 | AF10: 0 | AG10: 0 | AH10: 0 | AI10: 0 | AJ10: 0 | AK10: 0 | AL10: 0 | AM10: 0 | AN10: 0 | AO10: 0 | AP10: 0 | AQ10: 0 | AR10: 0 | AS10: 0 | AT10: 0 | AU10: 0 | AV10: 0 | AW10: 0 | AX10: 0 | AY10: 0 | AZ10: 0 | BA10: 0 | BB10: 0 | BC10: 0 | BD10: 0
A11: Plate 4 A-D | B11: Canada | C11: Canol | D11: 1214.60 | E11: Slater River H-64 | F11: 50 | G11: =TRANSPOSE('Data Entry'!E82:E131) -> 0.805 | H11: 0 | I11: 0 | J11: 0 | K11: 0 | L11: 0 | M11: 0 | N11: 0 | O11: 0 | P11: 0 | Q11: 0 | R11: 0 | S11: 0 | T11: 0 | U11: 0 | V11: 0 | W11: 0 | X11: 0 | Y11: 0 | Z11: 0 | AA11: 0 | AB11: 0 | AC11: 0 | AD11: 0 | AE11: 0 | AF11: 0 | AG11: 0 | AH11: 0 | AI11: 0 | AJ11: 0 | AK11: 0 | AL11: 0 | AM11: 0 | AN11: 0 | AO11: 0 | AP11: 0 | AQ11: 0 | AR11: 0 | AS11: 0 | AT11: 0 | AU11: 0 | AV11: 0 | AW11: 0 | AX11: 0 | AY11: 0 | AZ11: 0 | BA11: 0 | BB11: 0 | BC11: 0 | BD11: 0
A12: Plate 5 A-D | B12: Canada | C12: Canol | D12: 1232.40 | E12: Slater River H-64 | F12: 50 | G12: =TRANSPOSE('Data Entry'!F82:F131) -> 0.8327 | H12: 0.866 | I12: 0.9195 | J12: 0.9395 | K12: 0.9466 | L12: 0.9533 | M12: 0.9798 | N12: 1.006 | O12: 0 | P12: 0 | Q12: 0 | R12: 0 | S12: 0 | T12: 0 | U12: 0 | V12: 0 | W12: 0 | X12: 0 | Y12: 0 | Z12: 0 | AA12: 0 | AB12: 0 | AC12: 0 | AD12: 0 | AE12: 0 | AF12: 0 | AG12: 0 | AH12: 0 | AI12: 0 | AJ12: 0 | AK12: 0 | AL12: 0 | AM12: 0 | AN12: 0 | AO12: 0 | AP12: 0 | AQ12: 0 | AR12: 0 | AS12: 0 | AT12: 0 | AU12: 0 | AV12: 0 | AW12: 0 | AX12: 0 | AY12: 0 | AZ12: 0 | BA12: 0 | BB12: 0 | BC12: 0 | BD12: 0
A13: Plate 6 A-D | B13: Canada | C13: Canol | D13: 1239.85 | E13: Slater River H-64 | F13: 50 | G13: =TRANSPOSE('Data Entry'!G82:G131) -> 0.8422 | H13: 0.8474 | I13: 0.8499 | J13: 0.8578 | K13: 0.8674 | L13: 0.8728 | M13: 0.8782 | N13: 0.8787 | O13: 0.8823 | P13: 0.8867 | Q13: 0.8911 | R13: 0.8993 | S13: 0.9038 | T13: 0.9071 | U13: 0.9093 | V13: 0.9226 | W13: 0.934 | X13: 0.9379 | Y13: 0.9387 | Z13: 0.9482 | AA13: 0.952 | AB13: 0.9558 | AC13: 0.9584 | AD13: 0.9615 | AE13: 0.9621 | AF13: 0.968 | AG13: 0.9682 | AH13: 0.9693 | AI13: 0.9739 | AJ13: 0.9758 | AK13: 0.9832 | AL13: 0.9844 | AM13: 0.9844 | AN13: 0.9849 | AO13: 0.9887 | AP13: 0.993 | AQ13: 0.9941 | AR13: 0.9942 | AS13: 1.004 | AT13: 1.013 | AU13: 1.024 | AV13: 1.028 | AW13: 1.032 | AX13: 1.046 | AY13: 0 | AZ13: 0 | BA13: 0 | BB13: 0 | BC13: 0 | BD13: 0
A14: Plate 7 A-D | B14: Canada | C14: Canol | D14: 1248.60 | E14: Slater River H-64 | F14: 50 | G14: =TRANSPOSE('Data Entry'!H82:H131) -> 0.7668 | H14: 0.8155 | I14: 0.8389 | J14: 0 | K14: 0 | L14: 0 | M14: 0 | N14: 0 | O14: 0 | P14: 0 | Q14: 0 | R14: 0 | S14: 0 | T14: 0 | U14: 0 | V14: 0 | W14: 0 | X14: 0 | Y14: 0 | Z14: 0 | AA14: 0 | AB14: 0 | AC14: 0 | AD14: 0 | AE14: 0 | AF14: 0 | AG14: 0 | AH14: 0 | AI14: 0 | AJ14: 0 | AK14: 0 | AL14: 0 | AM14: 0 | AN14: 0 | AO14: 0 | AP14: 0 | AQ14: 0 | AR14: 0 | AS14: 0 | AT14: 0 | AU14: 0 | AV14: 0 | AW14: 0 | AX14: 0 | AY14: 0 | AZ14: 0 | BA14: 0 | BB14: 0 | BC14: 0 | BD14: 0
A15: Plate 8 A-D | B15: Canada | C15: Canol | D15: 1270.00 | E15: Slater River H-64 | F15: 50 | G15: =TRANSPOSE('Data Entry'!I82:I131) -> 0.9162 | H15: 0.938 | I15: 1.092 | J15: 0 | K15: 0 | L15: 0 | M15: 0 | N15: 0 | O15: 0 | P15: 0 | Q15: 0 | R15: 0 | S15: 0 | T15: 0 | U15: 0 | V15: 0 | W15: 0 | X15: 0 | Y15: 0 | Z15: 0 | AA15: 0 | AB15: 0 | AC15: 0 | AD15: 0 | AE15: 0 | AF15: 0 | AG15: 0 | AH15: 0 | AI15: 0 | AJ15: 0 | AK15: 0 | AL15: 0 | AM15: 0 | AN15: 0 | AO15: 0 | AP15: 0 | AQ15: 0 | AR15: 0 | AS15: 0 | AT15: 0 | AU15: 0 | AV15: 0 | AW15: 0 | AX15: 0 | AY15: 0 | AZ15: 0 | BA15: 0 | BB15: 0 | BC15: 0 | BD15: 0
A16: Plate 9 A-D | B16: Canada | C16: Canol | D16: 1279.10 | E16: Slater River H-64 | F16: 50 | G16: =TRANSPOSE('Data Entry'!J82:J131) -> 1.065 | H16: 1.068 | I16: 1.165 | J16: 1.177 | K16: 1.197 | L16: 1.247 | M16: 0 | N16: 0 | O16: 0 | P16: 0 | Q16: 0 | R16: 0 | S16: 0 | T16: 0 | U16: 0 | V16: 0 | W16: 0 | X16: 0 | Y16: 0 | Z16: 0 | AA16: 0 | AB16: 0 | AC16: 0 | AD16: 0 | AE16: 0 | AF16: 0 | AG16: 0 | AH16: 0 | AI16: 0 | AJ16: 0 | AK16: 0 | AL16: 0 | AM16: 0 | AN16: 0 | AO16: 0 | AP16: 0 | AQ16: 0 | AR16: 0 | AS16: 0 | AT16: 0 | AU16: 0 | AV16: 0 | AW16: 0 | AX16: 0 | AY16: 0 | AZ16: 0 | BA16: 0 | BB16: 0 | BC16: 0 | BD16: 0
A17: Plate 10 A-D | B17: Canada | C17: Canol | D17: 1284.45 | E17: Slater River H-64 | F17: 50 | G17: =TRANSPOSE('Data Entry'!K82:K131) -> 0.8682 | H17: 0.9032 | I17: 0.923 | J17: 0.926 | K17: 0.9705 | L17: 0.9899 | M17: 0.9982 | N17: 1.006 | O17: 1.012 | P17: 1.014 | Q17: 1.036 | R17: 1.039 | S17: 1.086 | T17: 1.102 | U17: 1.147 | V17: 0 | W17: 0 | X17: 0 | Y17: 0 | Z17: 0 | AA17: 0 | AB17: 0 | AC17: 0 | AD17: 0 | AE17: 0 | AF17: 0 | AG17: 0 | AH17: 0 | AI17: 0 | AJ17: 0 | AK17: 0 | AL17: 0 | AM17: 0 | AN17: 0 | AO17: 0 | AP17: 0 | AQ17: 0 | AR17: 0 | AS17: 0 | AT17: 0 | AU17: 0 | AV17: 0 | AW17: 0 | AX17: 0 | AY17: 0 | AZ17: 0 | BA17: 0 | BB17: 0 | BC17: 0 | BD17: 0

Sheet Frequency
A1: Pellet 1 | F1: Pellet 2 | K1: Pellet 3 | P1: Pellet 4 | U1: Pellet 5 | Z1: Pellet 6 | AE1: Pellet 7 | AJ1: Pellet 8 | AO1: Pellet 9 | AT1: Pellet 10
A2: Depth: | B2: 1175.0 | F2: Depth: | G2: ='Data Entry'!H2 -> 1186.7 | K2: Depth: | L2: ='Data Entry'!N2 -> 1196.8 | P2: Depth: | Q2: ='Data Entry'!T2 -> 1214.6 | U2: Depth: | V2: ='Data Entry'!Z2 -> 1232.4 | Z2: Depth: | AA2: ='Data Entry'!AF2 -> 1239.85 | AE2: Depth: | AF2: ='Data Entry'!AL2 -> 1248.6 | AJ2: Depth: | AK2: ='Data Entry'!AR2 -> 1270 | AO2: Depth: | AP2: ='Data Entry'!AX2 -> 1279.1 | AT2: Depth: | AU2: ='Data Entry'!BD2 -> 1284.45
A3: Individual OM Frequencies | B3: ='Data Entry'!C6 -> Kgn | C3: ='Data Entry'!D6 -> Pbit | D3: ='Data Entry'!E6 -> 0 | E3: ='Data Entry'!F6 -> 0 | F3: Individual OM Frequencies | G3: ='Data Entry'!I6 -> Kgn | H3: ='Data Entry'!J6 -> Pbit | I3: ='Data Entry'!K6 -> 0 | J3: ='Data Entry'!L6 -> 0 | K3: Individual OM Frequencies | L3: ='Data Entry'!O6 -> Kgn | M3: ='Data Entry'!P6 -> Grnl Kgn | N3: ='Data Entry'!Q6 -> 0 | O3: ='Data Entry'!R6 -> 0 | P3: Individual OM Frequencies | Q3: ='Data Entry'!U6 -> Kgn | R3: ='Data Entry'!V6 -> Pbit | S3: ='Data Entry'!W6 -> 0 | T3: ='Data Entry'!X6 -> 0 | U3: Individual OM Frequencies | V3: ='Data Entry'!AA6 -> Kgn | W3: ='Data Entry'!AB6 -> Grnl Kgn | X3: ='Data Entry'!AC6 -> 0 | Y3: ='Data Entry'!AD6 -> 0 | Z3: Individual OM Frequencies | AA3: ='Data Entry'!AG6 -> Pbit | AB3: ='Data Entry'!AH6 -> Kgn | AC3: ='Data Entry'!AI6 -> Grnl Kgn | AD3: ='Data Entry'!AJ6 -> 0 | AE3: Individual OM Frequencies | AF3: ='Data Entry'!AM6 -> Kgn | AG3: ='Data Entry'!AN6 -> 0 | AH3: ='Data Entry'!AO6 -> 0 | AI3: ='Data Entry'!AP6 -> 0 | AJ3: Individual OM Frequencies | AK3: ='Data Entry'!AS6 -> Kgn | AL3: ='Data Entry'!AT6 -> Gr | AM3: ='Data Entry'!AU6 -> Pbit | AN3: ='Data Entry'!AV6 -> 0 | AO3: Individual OM Frequencies | AP3: ='Data Entry'!AY6 -> Kgn | AQ3: ='Data Entry'!AZ6 -> 0 | AR3: ='Data Entry'!BA6 -> 0 | AS3: ='Data Entry'!BB6 -> 0 | AT3: Individual OM Frequencies | AU3: ='Data Entry'!BE6 -> Kgn | AV3: ='Data Entry'!BF6 -> 0 | AW3: ='Data Entry'!BG6 -> 0 | AX3: ='Data Entry'!BH6 -> 0
A5: Bins: | F5: Bins: | K5: Bins: | P5: Bins: | U5: Bins: | Z5: Bins: | AE5: Bins: | AJ5: Bins: | AO5: Bins: | AT5: Bins:
A6: 0.7 | B6: =FREQUENCY('Data Entry'!C7:C46,A6:A12) -> 0 | C6: =FREQUENCY('Data Entry'!D7:D28,A6:A12) -> 0 | F6: 0.7 | G6: =FREQUENCY('Data Entry'!I7:I43,F6:F10) -> 0 | H6: =FREQUENCY('Data Entry'!J7:J32,F6:F10) -> 0 | K6: 0.5 | L6: =FREQUENCY('Data Entry'!O7:O29,K6:K12) -> 0 | M6: =FREQUENCY('Data Entry'!P7:P27,K6:K12) -> 0 | P6: 0.2 | Q6: =FREQUENCY('Data Entry'!U7:U19,P6:P11) -> 0 | R6: =FREQUENCY('Data Entry'!V7:V23,P6:P11) -> 0 | U6: 0.2 | V6: =FREQUENCY('Data Entry'!AA7:AA40,U6:U12) -> 0 | W6: =FREQUENCY('Data Entry'!AB7:AB34,U6:U12) -> 0 | Z6: 0.4 | AA6: =FREQUENCY('Data Entry'!AG7:AG56,Z6:Z11) -> 0 | AB6: =FREQUENCY('Data Entry'!AH7:AH30,Z6:Z11) -> 0 | AC6: =FREQUENCY('Data Entry'!AI7:AI43,Z6:Z11) -> 0 | AE6: 0.6 | AF6: =FREQUENCY('Data Entry'!AM7:AM32,AE6:AE10) -> 0 | AJ6: 0.2 | AK6: =FREQUENCY('Data Entry'!AS7:AS36,AJ6:AJ11) -> 0 | AL6: =FREQUENCY('Data Entry'!AT7:AT42,AJ6:AJ11) -> 0 | AM6: =FREQUENCY('Data Entry'!AU7:AU31,AJ6:AJ11) -> 0 | AO6: 0.9 | AP6: =FREQUENCY('Data Entry'!AY7:AY39,AO6:AO11) -> 0 | AT6: 0.7 | AU6: =FREQUENCY('Data Entry'!BE7:BE40,AT6:AT12) -> 0
A7: 0.8 | B7: 0 | C7: 0 | F7: 0.8 | G7: 0 | H7: 0 | K7: 0.6 | L7: 0 | M7: 0 | P7: 0.4 | Q7: 0 | R7: 0 | U7: 0.4 | V7: 0 | W7: 0 | Z7: 0.6 | AA7: 0 | AB7: 0 | AC7: 2 | AE7: 0.7 | AF7: 0 | AJ7: 0.4 | AK7: 0 | AL7: 0 | AM7: 0 | AO7: 1 | AP7: 0 | AT7: 0.8 | AU7: 0
A8: 0.9 | B8: 1 | C8: 0 | F8: 0.9 | G8: 5 | H8: 1 | K8: 0.7 | L8: 0 | M8: 2 | P8: 0.6 | Q8: 0 | R8: 1 | U8: 0.6 | V8: 0 | W8: 8 | Z8: 0.8 | AA8: 0 | AB8: 0 | AC8: 5 | AE8: 0.8 | AF8: 1 | AJ8: 0.6 | AK8: 0 | AL8: 1 | AM8: 0 | AO8: 1.1 | AP8: 2 | AT8: 0.9 | AU8: 1
A9: 1 | B9: 7 | C9: 2 | F9: 1 | G9: 2 | H9: 1 | K9: 0.8 | L9: 0 | M9: 0 | P9: 0.8 | Q9: 0 | R9: 0 | U9: 0.8 | V9: 0 | W9: 1 | Z9: 1 | AA9: 38 | AB9: 5 | AC9: 0 | AE9: 0.9 | AF9: 2 | AJ9: 0.8 | AK9: 0 | AL9: 8 | AM9: 0 | AO9: 1.2 | AP9: 3 | AT9: 1 | AU9: 6
A10: 1.1 | B10: 4 | C10: 1 | F10: 1.2 | G10: 0 | H10: 0 | K10: 0.9 | L10: 1 | M10: 0 | P10: 1 | Q10: 1 | R10: 0 | U10: 1 | V10: 7 | W10: 0 | Z10: 1.2 | AA10: 6 | AB10: 0 | AC10: 0 | AE10: 1 | AF10: 0 | AJ10: 1 | AK10: 2 | AL10: 0 | AM10: 2 | AO10: 1.3 | AP10: 1 | AT10: 1.1 | AU10: 6
A11: 1.2 | B11: 6 | C11: 0 | K11: 1 | L11: 2 | M11: 0 | P11: 1.2 | Q11: 0 | R11: 0 | U11: 1.2 | V11: 1 | W11: 0 | Z11: 1.4 | AA11: 0 | AB11: 0 | AC11: 0 | AJ11: 1.2 | AK11: 1 | AL11: 0 | AM11: 1 | AO11: 1.4 | AP11: 0 | AT11: 1.2 | AU11: 2
A12: 1.3 | B12: 0 | C12: 0 | K12: 1.1 | L12: 0 | M12: 0 | U12: 1.4 | V12: 0 | W12: 0 | AJ12: 1.4 | AK12: 0 | AL12: 0 | AM12: 0 | AT12: 1.3 | AU12: 0
A28: Max | B28: ='Data Entry'!C59 -> 1.20 | C28: ='Data Entry'!D59 -> 1.09 | D28: ='Data Entry'!E59 -> 0.00 | E28: ='Data Entry'!F59 -> 0.00 | F28: Max | G28: ='Data Entry'!I59 -> 1.00 | H28: ='Data Entry'!J59 -> 0.95 | I28: ='Data Entry'!K59 -> 0.00 | J28: ='Data Entry'!L59 -> 0.00 | K28: Max | L28: ='Data Entry'!O59 -> 0.92 | M28: ='Data Entry'!P59 -> 0.63 | N28: ='Data Entry'!Q59 -> 0.00 | O28: ='Data Entry'!R59 -> 0.00 | P28: Max | Q28: ='Data Entry'!U59 -> 0.81 | R28: ='Data Entry'!V59 -> 0.55 | S28: ='Data Entry'!W59 -> 0.00 | T28: ='Data Entry'!X59 -> 0.00 | U28: Max | V28: ='Data Entry'!AA59 -> 1.01 | W28: ='Data Entry'!AB59 -> 0.60 | X28: ='Data Entry'!AC59 -> 0.00 | Y28: ='Data Entry'!AD59 -> 0.00 | Z28: Max | AA28: ='Data Entry'!AG59 -> 1.05 | AB28: ='Data Entry'!AH59 -> 0.96 | AC28: ='Data Entry'!AI59 -> 0.66 | AD28: ='Data Entry'!AJ59 -> 0.00 | AE28: Max | AF28: ='Data Entry'!AM59 -> 0.84 | AG28: ='Data Entry'!AN59 -> 0.00 | AH28: ='Data Entry'!AO59 -> 0.00 | AI28: ='Data Entry'!AP59 -> 0.00 | AJ28: Max | AK28: ='Data Entry'!AS59 -> 1.09 | AL28: ='Data Entry'!AT59 -> 0.77 | AM28: ='Data Entry'!AU59 -> 1.00 | AN28: ='Data Entry'!AV59 -> 0.00 | AO28: Max | AP28: ='Data Entry'!AY59 -> 1.25 | AQ28: ='Data Entry'!AZ59 -> 0.00 | AR28: ='Data Entry'!BA59 -> 0.00 | AS28: ='Data Entry'!BB59 -> 0.00 | AT28: Max | AU28: ='Data Entry'!BE59 -> 1.15 | AV28: ='Data Entry'!BF59 -> 0.00 | AW28: ='Data Entry'!BG59 -> 0.00 | AX28: ='Data Entry'!BH59 -> 0.00
A29: Min | B29: ='Data Entry'!C60 -> 0.82 | C29: ='Data Entry'!D60 -> 0.94 | D29: ='Data Entry'!E60 -> 0.00 | E29: ='Data Entry'!F60 -> 0.00 | F29: Min | G29: ='Data Entry'!I60 -> 0.83 | H29: ='Data Entry'!J60 -> 0.90 | I29: ='Data Entry'!K60 -> 0.00 | J29: ='Data Entry'!L60 -> 0.00 | K29: Min | L29: ='Data Entry'!O60 -> 0.87 | M29: ='Data Entry'!P60 -> 0.62 | N29: ='Data Entry'!Q60 -> 0.00 | O29: ='Data Entry'!R60 -> 0.00 | P29: Min | Q29: ='Data Entry'!U60 -> 0.81 | R29: ='Data Entry'!V60 -> 0.55 | S29: ='Data Entry'!W60 -> 0.00 | T29: ='Data Entry'!X60 -> 0.00 | U29: Min | V29: ='Data Entry'!AA60 -> 0.83 | W29: ='Data Entry'!AB60 -> 0.54 | X29: ='Data Entry'!AC60 -> 0.00 | Y29: ='Data Entry'!AD60 -> 0.00 | Z29: Min | AA29: ='Data Entry'!AG60 -> 0.84 | AB29: ='Data Entry'!AH60 -> 0.82 | AC29: ='Data Entry'!AI60 -> 0.59 | AD29: ='Data Entry'!AJ60 -> 0.00 | AE29: Min | AF29: ='Data Entry'!AM60 -> 0.77 | AG29: ='Data Entry'!AN60 -> 0.00 | AH29: ='Data Entry'!AO60 -> 0.00 | AI29: ='Data Entry'!AP60 -> 0.00 | AJ29: Min | AK29: ='Data Entry'!AS60 -> 0.92 | AL29: ='Data Entry'!AT60 -> 0.59 | AM29: ='Data Entry'!AU60 -> 0.93 | AN29: ='Data Entry'!AV60 -> 0.00 | AO29: Min | AP29: ='Data Entry'!AY60 -> 1.07 | AQ29: ='Data Entry'!AZ60 -> 0.00 | AR29: ='Data Entry'!BA60 -> 0.00 | AS29: ='Data Entry'!BB60 -> 0.00 | AT29: Min | AU29: ='Data Entry'!BE60 -> 0.87 | AV29: ='Data Entry'!BF60 -> 0.00 | AW29: ='Data Entry'!BG60 -> 0.00 | AX29: ='Data Entry'!BH60 -> 0.00
A30: Sum Data Entry | B30: =COUNT('Data Entry'!C7:C56) -> 18 | C30: =COUNT('Data Entry'!D7:D56) -> 3 | D30: =COUNT('Data Entry'!E7:E56) -> 0 | E30: =COUNT('Data Entry'!F7:F56) -> 0 | F30: Sum Data Entry | G30: =COUNT('Data Entry'!I7:I56) -> 7 | H30: =COUNT('Data Entry'!J7:J56) -> 2 | I30: =COUNT('Data Entry'!K7:K56) -> 0 | J30: =COUNT('Data Entry'!L7:L56) -> 0 | K30: Sum Data Entry | L30: =COUNT('Data Entry'!O7:O56) -> 3 | M30: =COUNT('Data Entry'!P7:P56) -> 2 | N30: =COUNT('Data Entry'!Q7:Q56) -> 0 | O30: =COUNT('Data Entry'!R7:R56) -> 0 | P30: Sum Data Entry | Q30: =COUNT('Data Entry'!U7:U56) -> 1 | R30: =COUNT('Data Entry'!V7:V56) -> 1 | S30: =COUNT('Data Entry'!W7:W56) -> 0 | T30: =COUNT('Data Entry'!X7:X56) -> 0 | U30: Sum Data Entry | V30: =COUNT('Data Entry'!AA7:AA56) -> 8 | W30: =COUNT('Data Entry'!AB7:AB56) -> 9 | X30: =COUNT('Data Entry'!AC7:AC56) -> 0 | Y30: =COUNT('Data Entry'!AD7:AD56) -> 0 | Z30: Sum Data Entry | AA30: =COUNT('Data Entry'!AG7:AG56) -> 44 | AB30: =COUNT('Data Entry'!AH7:AH56) -> 5 | AC30: =COUNT('Data Entry'!AI7:AI56) -> 7 | AD30: =COUNT('Data Entry'!AJ7:AJ56) -> 0 | AE30: Sum Data Entry | AF30: =COUNT('Data Entry'!AM7:AM56) -> 3 | AG30: =COUNT('Data Entry'!AN7:AN56) -> 0 | AH30: =COUNT('Data Entry'!AO7:AO56) -> 0 | AI30: =COUNT('Data Entry'!AP7:AP56) -> 0 | AJ30: Sum Data Entry | AK30: =COUNT('Data Entry'!AS7:AS56) -> 3 | AL30: =COUNT('Data Entry'!AT7:AT56) -> 9 | AM30: =COUNT('Data Entry'!AU7:AU56) -> 3 | AN30: =COUNT('Data Entry'!AV7:AV56) -> 0 | AO30: Sum Data Entry | AP30: =COUNT('Data Entry'!AY7:AY56) -> 6 | AQ30: =COUNT('Data Entry'!AZ7:AZ56) -> 0 | AR30: =COUNT('Data Entry'!BA7:BA56) -> 0 | AS30: =COUNT('Data Entry'!BB7:BB56) -> 0 | AT30: Sum Data Entry | AU30: =COUNT('Data Entry'!BE7:BE56) -> 15 | AV30: =COUNT('Data Entry'!BF7:BF56) -> 0 | AW30: =COUNT('Data Entry'!BG7:BG56) -> 0 | AX30: =COUNT('Data Entry'!BH7:BH56) -> 0
A31: Sum Frequency | B31: =SUM(B6:B26) -> 18 | C31: =SUM(C6:C26) -> 3 | D31: =SUM(D6:D26) -> 0 | E31: =SUM(E6:E26) -> 0 | F31: Sum Frequency | G31: =SUM(G6:G26) -> 7 | H31: =SUM(H6:H26) -> 2 | I31: 0 | J31: 0 | K31: Sum Frequency | L31: 3 | M31: 2 | N31: 0 | O31: 0 | P31: Sum Frequency | Q31: 1 | R31: 1 | S31: 0 | T31: 0 | U31: Sum Frequency | V31: =SUM(V6:V26) -> 8 | W31: =SUM(W6:W26) -> 9 | X31: 0 | Y31: 0 | Z31: Sum Frequency | AA31: 44 | AB31: 5 | AC31: 7 | AD31: 0 | AE31: Sum Frequency | AF31: 3 | AG31: 0 | AH31: 0 | AI31: 0 | AJ31: Sum Frequency | AK31: 3 | AL31: 9 | AM31: 3 | AN31: 0 | AO31: Sum Frequency | AP31: 6 | AQ31: 0 | AR31: 0 | AS31: 0 | AT31: Sum Frequency | AU31: 15 | AV31: 0 | AW31: 0 | AX31: 0
A32: Confirm | B32: =IF(B30<>B31,FALSE,TRUE) -> TRUE | C32: =IF(C30<>C31,FALSE,TRUE) -> TRUE | D32: =IF(D30<>D31,FALSE,TRUE) -> TRUE | E32: =IF(E30<>E31,FALSE,TRUE) -> TRUE | F32: Confirm | G32: =IF(G30<>G31,FALSE,TRUE) -> TRUE | H32: =IF(H30<>H31,FALSE,TRUE) -> TRUE | I32: =IF(I30<>I31,FALSE,TRUE) -> TRUE | J32: =IF(J30<>J31,FALSE,TRUE) -> TRUE | K32: Confirm | L32: =IF(L30<>L31,FALSE,TRUE) -> TRUE | M32: =IF(M30<>M31,FALSE,TRUE) -> TRUE | N32: =IF(N30<>N31,FALSE,TRUE) -> TRUE | O32: =IF(O30<>O31,FALSE,TRUE) -> TRUE | P32: Confirm | Q32: =IF(Q30<>Q31,FALSE,TRUE) -> TRUE | R32: =IF(R30<>R31,FALSE,TRUE) -> TRUE | S32: =IF(S30<>S31,FALSE,TRUE) -> TRUE | T32: =IF(T30<>T31,FALSE,TRUE) -> TRUE | U32: Confirm | V32: =IF(V30<>V31,FALSE,TRUE) -> TRUE | W32: =IF(W30<>W31,FALSE,TRUE) -> TRUE | X32: =IF(X30<>X31,FALSE,TRUE) -> TRUE | Y32: =IF(Y30<>Y31,FALSE,TRUE) -> TRUE | Z32: Confirm | AA32: =IF(AA30<>AA31,FALSE,TRUE) -> TRUE | AB32: =IF(AB30<>AB31,FALSE,TRUE) -> TRUE | AC32: =IF(AC30<>AC31,FALSE,TRUE) -> TRUE | AD32: =IF(AD30<>AD31,FALSE,TRUE) -> TRUE | AE32: Confirm | AF32: =IF(AF30<>AF31,FALSE,TRUE) -> TRUE | AG32: =IF(AG30<>AG31,FALSE,TRUE) -> TRUE | AH32: =IF(AH30<>AH31,FALSE,TRUE) -> TRUE | AI32: =IF(AI30<>AI31,FALSE,TRUE) -> TRUE | AJ32: Confirm | AK32: =IF(AK30<>AK31,FALSE,TRUE) -> TRUE | AL32: =IF(AL30<>AL31,FALSE,TRUE) -> TRUE | AM32: =IF(AM30<>AM31,FALSE,TRUE) -> TRUE | AN32: =IF(AN30<>AN31,FALSE,TRUE) -> TRUE | AO32: Confirm | AP32: =IF(AP30<>AP31,FALSE,TRUE) -> TRUE | AQ32: =IF(AQ30<>AQ31,FALSE,TRUE) -> TRUE | AR32: =IF(AR30<>AR31,FALSE,TRUE) -> TRUE | AS32: =IF(AS30<>AS31,FALSE,TRUE) -> TRUE | AT32: Confirm | AU32: =IF(AU30<>AU31,FALSE,TRUE) -> TRUE | AV32: =IF(AV30<>AV31,FALSE,TRUE) -> TRUE | AW32: =IF(AW30<>AW31,FALSE,TRUE) -> TRUE | AX32: =IF(AX30<>AX31,FALSE,TRUE) -> TRUE

Sheet Pellet 1
B2: =Database!A8 -> Plate 1 A-D | C2: =Database!B3 -> Vitrinite Reflectance Measurements, Histogram and Images
A4: Company: | B4: =Database!C1 -> Husky Energy
A5: Formation | B5: =Database!C8 -> Canol | J5: List of Ro Values in Increasing Order:
A6: Location: | B6: =Database!B8 -> Canada | J6: =Database!G8 -> 0.82 | K6: =Database!H8 -> 0.90 | L6: =Database!I8 -> 0.91 | M6: =Database!J8 -> 0.92 | N6: =Database!K8 -> 0.93 | O6: =Database!L8 -> 0.95 | P6: =Database!M8 -> 0.96 | Q6: =Database!N8 -> 0.97 | R6: =Database!O8 -> 1.04 | S6: =Database!P8 -> 1.07
A7: Depth (m): | B7: =Database!D8 -> 1175.00 | E7: Well: | F7: =Database!E8 -> Slater River H-64 | J7: =Database!Q8 -> 1.08 | K7: =Database!R8 -> 1.09 | L7: =Database!S8 -> 1.11 | M7: =Database!T8 -> 1.15 | N7: =Database!U8 -> 1.16 | O7: =Database!V8 -> 1.18 | P7: =Database!W8 -> 1.18 | Q7: =Database!X8 -> 1.20
A8: Min Value | C8: =MIN(J6:S10) -> 0.82 | E8: The mean Ro,ran of the primary kerogen is 1.03% based on 18 measurements. The organic matter is mature and in the early upper stage of the oil window.
A9: Max Value | C9: =MAX(J6:S10) -> 1.20
A10: Mean Value | C10: =AVERAGE(J6:S10) -> 1.03
A11: # of Measurements | C11: =COUNT(J6:S10) -> 18 | O11: 10 micrometers
A12: Strd Deviation | C12: =STDEV(J6:S10) -> 0.12

Sheet Pellet 2
B2: =Database!A9 -> Plate 2 A-D | C2: =Database!B3 -> Vitrinite Reflectance Measurements, Histogram and Images
A4: Company: | B4: =Database!C1 -> Husky Energy
A5: Formation | B5: =Database!C9 -> Canol | J5: List of Ro Values in Increasing Order:
A6: Location: | B6: =Database!B9 -> Canada | J6: =Database!G9 -> 0.83 | K6: =Database!H9 -> 0.84 | L6: =Database!I9 -> 0.85 | M6: =Database!J9 -> 0.88 | N6: =Database!K9 -> 0.89 | O6: =Database!L9 -> 0.93 | P6: =Database!M9 -> 1.00
A7: Depth (m): | B7: =Database!D9 -> 1186.70 | E7: Well: | F7: =Database!E9 -> Slater River H-64
A8: Min Value | C8: =MIN(J6:S10) -> 0.83 | E8: The mean Ro,ran of the primary kerogen is 0.89% based on 7 measurements. The organic matter is mature and in the middle stage of the oil window.
A9: Max Value | C9: =MAX(J6:S10) -> 1.00
A10: Mean Value | C10: =AVERAGE(J6:S10) -> 0.89
A11: # of Measurements | C11: =COUNT(J6:S10) -> 7 | O11: 10 micrometers
A12: Strd Deviation | C12: =STDEV(J6:S10) -> 0.06

Sheet Pellet 3
B2: =Database!A10 -> Plate 3 A-D | C2: =Database!B3 -> Vitrinite Reflectance Measurements, Histogram and Images
A4: Company: | B4: =Database!C1 -> Husky Energy
A5: Formation | B5: =Database!C10 -> Canol | J5: List of Ro Values in Increasing Order:
A6: Location: | B6: =Database!B10 -> Canada | J6: =Database!G10 -> 0.87 | K6: =Database!H10 -> 0.91 | L6: =Database!I10 -> 0.92
A7: Depth (m): | B7: =Database!D10 -> 1196.80 | E7: Well: | F7: =Database!E10 -> Slater River H-64
A8: Min Value | C8: =MIN(J6:S10) -> 0.87 | E8: The mean Ro,ran of the primary kerogen is 0.90% based on 3 measurements. The organic matter is mature and in the middle stage of the oil window.
A9: Max Value | C9: =MAX(J6:S10) -> 0.92
A10: Mean Value | C10: =AVERAGE(J6:S10) -> 0.90
A11: # of Measurements | C11: =COUNT(J6:S10) -> 3 | O11: 10 micrometers
A12: Strd Deviation | C12: =STDEV(J6:S10) -> 0.03

Sheet Pellet 4
B2: =Database!A11 -> Plate 4 A-D | C2: =Database!B3 -> Vitrinite Reflectance Measurements, Histogram and Images
A4: Company: | B4: =Database!C1 -> Husky Energy
A5: Formation | B5: =Database!C11 -> Canol | J5: List of Ro Values in Increasing Order:
A6: Location: | B6: =Database!B11 -> Canada | J6: =Database!G11 -> 0.81
A7: Depth (m): | B7: =Database!D11 -> 1214.60 | E7: Well: | F7: =Database!E11 -> Slater River H-64
A8: Min Value | C8: =MIN(J6:S10) -> 0.81 | E8: The mean Ro,ran of the primary kerogen (vitrinitic) is 0.81% based on 1 measurement. The organic matter is mature and in the middle stage of the oil window.
A9: Max Value | C9: =MAX(J6:S10) -> 0.81
A10: Mean Value | C10: =AVERAGE(J6:S10) -> 0.81
A11: # of Measurements | C11: =COUNT(J6:S10) -> 1 | O11: 10 micrometers
A12: Strd Deviation | C12: N/A

Sheet Pellet 5
B2: =Database!A12 -> Plate 5 A-D | C2: =Database!B3 -> Vitrinite Reflectance Measurements, Histogram and Images
A4: Company: | B4: =Database!C1 -> Husky Energy
A5: Formation | B5: =Database!C12 -> Canol | J5: List of Ro Values in Increasing Order:
A6: Location: | B6: =Database!B12 -> Canada | J6: =Database!G12 -> 0.83 | K6: =Database!H12 -> 0.87 | L6: =Database!I12 -> 0.92 | M6: =Database!J12 -> 0.94 | N6: =Database!K12 -> 0.95 | O6: =Database!L12 -> 0.95 | P6: =Database!M12 -> 0.98 | Q6: =Database!N12 -> 1.01
A7: Depth (m): | B7: =Database!D12 -> 1232.40 | E7: Well: | F7: =Database!E12 -> Slater River H-64
A8: Min Value | C8: =MIN(J6:S10) -> 0.83 | E8: The mean Ro,ran of the primary kerogen is 0.93% based on 8 measurements. The organic matter is mature and in the middle stage of the oil window.
A9: Max Value | C9: =MAX(J6:S10) -> 1.01
A10: Mean Value | C10: =AVERAGE(J6:S10) -> 0.93
A11: # of Measurements | C11: =COUNT(J6:S10) -> 8 | O11: 10 micrometers
A12: Strd Deviation | C12: =STDEV(J6:S10) -> 0.06

Sheet Pellet 6
B2: =Database!A13 -> Plate 6 A-D | C2: =Database!B3 -> Vitrinite Reflectance Measurements, Histogram and Images
A4: Company: | B4: =Database!C1 -> Husky Energy
A5: Formation | B5: =Database!C13 -> Canol | J5: List of Ro Values in Increasing Order:
A6: Location: | B6: =Database!B13 -> Canada | J6: =Database!G13 -> 0.84 | K6: =Database!H13 -> 0.85 | L6: =Database!I13 -> 0.85 | M6: =Database!J13 -> 0.86 | N6: =Database!K13 -> 0.87 | O6: =Database!L13 -> 0.87 | P6: =Database!M13 -> 0.88 | Q6: =Database!N13 -> 0.88 | R6: =Database!O13 -> 0.88 | S6: =Database!P13 -> 0.89
A7: Depth (m): | B7: =Database!D13 -> 1239.85 | E7: Well: | F7: =Database!E13 -> Slater River H-64 | J7: =Database!Q13 -> 0.89 | K7: =Database!R13 -> 0.90 | L7: =Database!S13 -> 0.90 | M7: =Database!T13 -> 0.91 | N7: =Database!U13 -> 0.91 | O7: =Database!V13 -> 0.92 | P7: =Database!W13 -> 0.93 | Q7: =Database!X13 -> 0.94 | R7: =Database!Y13 -> 0.94 | S7: =Database!Z13 -> 0.95
A8: Min Value | C8: =MIN(J6:S10) -> 0.84 | E8: The mean Ro,ran of pyrobitumen is 0.94% based on 44 measurements. VRo-eq is 0.98% using the Jacob formula. The organic matter is mature and in the middle stage of the oil window. | J8: =Database!AA13 -> 0.95 | K8: =Database!AB13 -> 0.96 | L8: =Database!AC13 -> 0.96 | M8: =Database!AD13 -> 0.96 | N8: =Database!AE13 -> 0.96 | O8: =Database!AF13 -> 0.97 | P8: =Database!AG13 -> 0.97 | Q8: =Database!AH13 -> 0.97 | R8: =Database!AI13 -> 0.97 | S8: =Database!AJ13 -> 0.98
A9: Max Value | C9: =MAX(J6:S10) -> 1.05 | J9: =Database!AK13 -> 0.98 | K9: =Database!AL13 -> 0.98 | L9: =Database!AM13 -> 0.98 | M9: =Database!AN13 -> 0.98 | N9: =Database!AO13 -> 0.99 | O9: =Database!AP13 -> 0.99 | P9: =Database!AQ13 -> 0.99 | Q9: =Database!AR13 -> 0.99 | R9: =Database!AS13 -> 1.00 | S9: =Database!AT13 -> 1.01
A10: Mean Value | C10: =AVERAGE(J6:S10) -> 0.94 | J10: =Database!AU13 -> 1.02 | K10: =Database!AV13 -> 1.03 | L10: =Database!AW13 -> 1.03 | M10: =Database!AX13 -> 1.05
A11: # of Measurements | C11: =COUNT(J6:S10) -> 44 | J11: The above values were measured on bitumen | O11: 10 micrometers
A12: Strd Deviation | C12: =STDEV(J6:S10) -> 0.06

Sheet Pellet 7
B2: =Database!A14 -> Plate 7 A-D | C2: =Database!B3 -> Vitrinite Reflectance Measurements, Histogram and Images
A4: Company: | B4: =Database!C1 -> Husky Energy
A5: Formation | B5: =Database!C14 -> Canol | J5: List of Ro Values in Increasing Order:
A6: Location: | B6: =Database!B14 -> Canada | J6: =Database!G14 -> 0.77 | K6: =Database!H14 -> 0.82 | L6: =Database!I14 -> 0.84
A7: Depth (m): | B7: =Database!D14 -> 1248.60 | E7: Well: | F7: =Database!E14 -> Slater River H-64
A8: Min Value | C8: =MIN(J6:S10) -> 0.77 | E8: The mean Ro,ran of the primary kerogen (vitrinitic) is 0.81% based on 3 measurements. The organic matter is mature and in the middle stage of the oil window.
A9: Max Value | C9: =MAX(J6:S10) -> 0.84
A10: Mean Value | C10: =AVERAGE(J6:S10) -> 0.81
A11: # of Measurements | C11: =COUNT(J6:S10) -> 3 | O11: 10 micrometers
A12: Strd Deviation | C12: =STDEV(J6:S10) -> 0.04

Sheet Pellet 8
B2: =Database!A15 -> Plate 8 A-D | C2: =Database!B3 -> Vitrinite Reflectance Measurements, Histogram and Images
A4: Company: | B4: =Database!C1 -> Husky Energy
A5: Formation | B5: =Database!C15 -> Canol | J5: List of Ro Values in Increasing Order:
A6: Location: | B6: =Database!B15 -> Canada | J6: =Database!G15 -> 0.92 | K6: =Database!H15 -> 0.94 | L6: =Database!I15 -> 1.09
A7: Depth (m): | B7: =Database!D15 -> 1270.00 | E7: Well: | F7: =Database!E15 -> Slater River H-64
A8: Min Value | C8: =MIN(J6:S10) -> 0.92 | E8: The mean Ro,ran of the primary kerogen is 0.98% based on 3 measurements. The organic matter is mature and in the middle stage of the oil window.
A9: Max Value | C9: =MAX(J6:S10) -> 1.09
A10: Mean Value | C10: =AVERAGE(J6:S10) -> 0.98
A11: # of Measurements | C11: =COUNT(J6:S10) -> 3 | O11: 10 micrometers
A12: Strd Deviation | C12: =STDEV(J6:S10) -> 0.10

Sheet Pellet 9
B2: =Database!A16 -> Plate 9 A-D | C2: =Database!B3 -> Vitrinite Reflectance Measurements, Histogram and Images
A4: Company: | B4: =Database!C1 -> Husky Energy
A5: Formation | B5: =Database!C16 -> Canol | J5: List of Ro Values in Increasing Order:
A6: Location: | B6: =Database!B16 -> Canada | J6: =Database!G16 -> 1.07 | K6: =Database!H16 -> 1.07 | L6: =Database!I16 -> 1.17 | M6: =Database!J16 -> 1.18 | N6: =Database!K16 -> 1.20 | O6: =Database!L16 -> 1.25
A7: Depth (m): | B7: =Database!D16 -> 1279.10 | E7: Well: | F7: =Database!E16 -> Slater River H-64
A8: Min Value | C8: =MIN(J6:S10) -> 1.07 | E8: The mean Ro,ran of the primary kerogen is 1.15% based on 6 measurements. The organic matter is mature and in the upper stage of the oil window.
A9: Max Value | C9: =MAX(J6:S10) -> 1.25
A10: Mean Value | C10: =AVERAGE(J6:S10) -> 1.15
A11: # of Measurements | C11: =COUNT(J6:S10) -> 6 | O11: 10 micrometers
A12: Strd Deviation | C12: =STDEV(J6:S10) -> 0.07

Sheet Pellet 10
A2: =Database!A17 -> Plate 10 A-D | C2: =Database!B3 -> Vitrinite Reflectance Measurements, Histogram and Images
A4: Company: | B4: =Database!C1 -> Husky Energy
A5: Formation | B5: =Database!C17 -> Canol | J5: List of Ro Values in Increasing Order:
A6: Location: | B6: =Database!B17 -> Canada | J6: =Database!G17 -> 0.87 | K6: =Database!H17 -> 0.90 | L6: =Database!I17 -> 0.92 | M6: =Database!J17 -> 0.93 | N6: =Database!K17 -> 0.97 | O6: =Database!L17 -> 0.99 | P6: =Database!M17 -> 1.00 | Q6: =Database!N17 -> 1.01 | R6: =Database!O17 -> 1.01 | S6: =Database!P17 -> 1.01
A7: Depth (m): | B7: =Database!D17 -> 1284.45 | E7: Well: | F7: =Database!E17 -> Slater River H-64 | J7: =Database!Q17 -> 1.04 | K7: =Database!R17 -> 1.04 | L7: =Database!S17 -> 1.09 | M7: =Database!T17 -> 1.10 | N7: =Database!U17 -> 1.15
A8: Min Value | C8: =MIN(J6:S10) -> 0.87 | E8: The mean Ro,ran of the primary kerogen is 1.0% based on 15 measurements. The organic matter is mature and at the exact boundary between the middle and upper stages of the oil window.
A9: Max Value | C9: =MAX(J6:S10) -> 1.15
A10: Mean Value | C10: =AVERAGE(J6:S10) -> 1.00
A11: # of Measurements | C11: =COUNT(J6:S10) -> 15 | O11: 10 micrometers
A12: Strd Deviation | C12: =STDEV(J6:S10) -> 0.08
